Workbook

Sheet КС-2
H1: Форма № КС-2
A5: Инвестор | C5: ПАО "ГАЗПРОМ", РФ, 117997, г.Москва, ул. Наметкина,16, тел. 719-31-03
C6: (организация, адрес, телефон, факс)
A7: Заказчик | C7: ЗАО "Ямалгазинвест",РФ, 119415,г. Москва, пр-т Вернадского, д.41, стр. 1, (499) 580-43-63
C8: (организация, адрес, телефон, факс)
A9: Генподрядчик | C9: ООО "Стройгазконсалтинг",РФ, 121151, г. Москва, наб. Тараса Шевченко, д.23А, (495) 280-08-08, факс 280-06-06
C10: (организация, адрес, телефон, факс)
A11: Стройка | C11: Система магистральных газопроводов Бованенково - Ухта
A13: Объект | C13: "КС-3 "Гагарацкая". КЦ-1"
F16: Договор подряда (контракт) | G16: номер | H16: СГК-10-804/4
G17: дата | H17: 30.08.2010г.
F18: Вид операции
D19: Номер | E19: Дата составления | G19: Отчетный период
D20: документа | G20: с | H20: по
C21: АКТ | E21: =H21 -> 2016-10-31 | G21: 2016-10-01 | H21: 2016-10-31
C22: О ПРИЕМКЕ ВЫПОЛНЕННЫХ РАБОТ
A24: Сметная (договорная) стоимость в соответствии с договором подряда (субподряда) | F24: 7009307 | H24: руб.
A26: Номер | C26: Наименование работ и затрат | D26: Шифр и номер позиции норматива | E26: Единица измерения | F26: Выполнено работ | I26: Выполнено | K26: На Единицу | M26: Сметные | Q26: Выполнено | T26: Сметные
A27: п/п | B27: поз. по смете | F27: Количество | G27: цена за единицу, руб | H27: стоимость, руб | I27: НР | J27: СП | K27: Ед. НР | L27: Ед. СП | M27: стоимость, руб | N27: НР | O27: СП | P27: Общая стоимость,руб | Q27: ЗТр | R27: ЗТм | S27: Всего ЗТ | T27: на единицу | V27: всего
T28: Ед. ЗТр | U28: Ед. ЗТм | V28: ЗТр | W28: ЗТм
A30: 1 | B30: 2 | C30: 3 | D30: 4 | E30: 5 | F30: 6 | G30: 7 | H30: 8 | K30: 5 | L30: 5 | M30: 8 | N30: 8 | O30: 8 | P30: 8 | T30: 12 | U30: 12 | V30: 13 | W30: 13
C31: ЛОКАЛЬНАЯ СМЕТА 5-518-9Р ИНВ.149681
C32: ЭСТАКАДА ВНЕПЛОЩАДОЧНЫХ КОММУНИКАЦИЙ (L-377м; 1м-18592,33 руб.), КС-3 "ГАГАРАЦКАЯ" КЦ-1
C33: Раздел 1.СВАЙНОЕ ОСНОВАНИЕ
C34: БУРООПУСКНОЙ СПОСОБ ПОГРУЖЕНИЯ СВАЙ С ОТКРЫТЫМ НИЖНИМ КОНЦОМ
A35: 1 | B35: 22 | C35: Огрунтовка (окраска) металлоконструкций эмалью СБЭ-111 Унипол марки Б ТУ 2312-001-59846005-2003 [первый слой, толщиной 75 мкм] | D35: Е1303-1-1 13-03-001- 01 ГЭСН | E35: 100м2 | F35: 0.32 | G35: 2112.27 | H35: =ROUND(F35*G35,0) -> 676 | I35: =ROUND(F35*K35,0) -> 373 | J35: =ROUND(F35*L35,0) -> 280 | K35: 1164.57 | L35: 875.99 | M35: 2070 | N35: 1141 | O35: 858 | P35: 4070 | Q35: =ROUND(F35*T35,0) -> 2 | R35: =ROUND(F35*U35,0) -> 0 | S35: =Q35+R35 -> 2 | T35: 7.43 | U35: 0.02 | V35: 7
A36: 2 | B36: 23 | C36: Огрунтовка (окраска) металлоконструкций эмалью СБЭ-111 Унипол марки Б ТУ 2312-001-59846005-2003 [последующий слой, толщиной 75 мкм] | D36: Е1303-1-2 13-03-001- 02 ГЭСН | E36: 100м2 | F36: 0.32 | G36: 1815.75 | H36: 581 | I36: 373 | J36: 280 | K36: 1164.57 | L36: 875.99 | M36: 1779 | N36: 1141 | O36: 858 | P36: 3779 | Q36: 2 | R36: 0 | S36: 2 | T36: 7.43 | U36: 0.02 | V36: 7
A37: 3 | B37: 24 | C37: Грунт-эмаль "СБЭ-111 "Унипол" марки "Б", ТУ 2312-001-59846005-2003 | D37: С1113-0283- 2 113-0283-0 0002 | E37: кг | F37: 15.08 | G37: 53.58 | H37: 808 | I37: 0 | J37: 0 | M37: 2415 | Q37: 0 | R37: 0 | S37: 0
C38: Раздел 3. ПРОЧИЕ РАБОТЫ
A39: 4 | B39: 39 | C39: Огрунтовка металлических поверхностей грунтовкой ГФ-0119 за 2 раза | D39: Е1303-2-5 13-03-002- 05 ГЭСН К-2 | E39: 100м2 | F39: 2.85 | G39: 3563.53 | H39: =ROUND(F39*G39,0) -> 10156 | I39: =ROUND(F39*K39,0) -> 4802 | J39: =ROUND(F39*L39,0) -> 3612 | K39: 1684.98 | L39: 1267.45 | M39: 10156 | N39: 4802 | O39: 3612 | P39: 18570 | Q39: =ROUND(F39*T39,0) -> 30 | R39: =ROUND(F39*U39,0) -> 0 | S39: =Q39+R39 -> 30 | T39: 10.62 | U39: 0.04 | V39: 30
A40: 5 | B40: 40 | C40: Окраска металлических огрунтованных поверхностей эмалью ПФ-115 за 2 раза | D40: Е1303-4-26 13-03-004- 26 ГЭСН К-2 | E40: 100м2 | F40: 2.85 | G40: 6017.55 | H40: 17150 | I40: 2998 | J40: 2255 | K40: 1051.77 | L40: 791.14 | M40: 17150 | N40: 2998 | O40: 2255 | P40: 22402 | Q40: 22 | R40: 0 | S40: 22 | T40: 7.66 | U40: 0.04 | V40: 22
A41: 6 | B41: 41 | C41: Установка и разборка внутренних трубчатых инвентарных лесов при высоте помещений до 6 м | D41: Е807-2-1 08-07-002- 01 ГЭСН | E41: 100м2 | F41: 0.09 | G41: 16913.08 | H41: 1522 | I41: 1108 | J41: 704 | K41: 12316.33 | L41: 7822.38 | M41: 1522 | N41: 1108 | O41: 704 | P41: 3334 | Q41: 6 | R41: 0 | S41: 6 | T41: 70.2 | U41: 0.18 | V41: 6
C42: Итого прямые затраты | H42: =SUM(H35:H41)-2 -> 30891 | I42: =SUM(I35:I41)-2 -> 9652 | J42: =SUM(J35:J41) -> 7131 | K42: 17382.22 | L42: 11632.95 | M42: 35092 | N42: 11190 | O42: 8287 | P42: 52155 | Q42: 62 | R42: 0 | S42: 62 | T42: 103.34 | U42: 0.3 | V42: 72 | W42: 0 | X42: =SUM(#REF!) -> 
C43: Накладные расходы | H43: =I42 -> 9652
C44: Сметная прибыль | H44: =J42 -> 7131
C45: Итого: | H45: =SUM(H42:H44) -> 47674
C46: Итого с К= 1,91 | F46: 1.91 | H46: =ROUND(H45*F46,0) -> 91057
C47: Итого по акту | H47: =H46 -> 91057
J48: 30891
J49: 9652
J50: 7131
J51: 47674
A54: Сдал: | C54: Представитель ООО "Стройгазконсалтинг " (№ 08-16дов. от 10.01.2016г.) | G54: Т.Г. Мангасаров
E55: (подпись) | G55: (расшифровка подписи)
A60: Принял: | C60: Начальник Воркутинского управления по строительству МГ с дислокацией в г. Воркуте ЗАО "Ямалгазинвест" | G60: А.И. Штубей
E61: (подпись) | G61: (расшифровка подписи)
A66: Представитель строительного контроля Заказчика
E67: (подпись) | G67: (расшифровка подписи)
B71: Визы:
C72: Ответственное лицо, закрепленное от Воркутинского управления по строительству МГ с дислокацией в г. Воркуте ЗАО "Ямалгазинвест"
C73: (должность) | E73: (подпись) | G73: (расшифровка подписи)
C75: Главный специалист технического отдела Воркутинского управления по строительству МГ с дислокацией в г. Воркуте ЗАО "Ямалгазинвест" | G75: С.В. Шалыгина
C76: (должность) | E76: (подпись) | G76: (расшифровка подписи)

Sheet 3
L1: Форма № 4
B2: КС-3 "Гагарацкая" КЦ-1, входящих в стройку "Система магистральных газопроводов Бованенково-Ухта" 4377.3.Р.03.ВПК.3-3.000.АС.СМ392090
B3: (наименование стройки)
C5: ЛОКАЛЬНАЯ СМЕТА № | F5: 5-518-9Р ИНВ.149681
B6: (локальный сметный расчет)
A8: на | B8: ЭСТАКАДА ВНЕПЛОЩАДОЧНЫХ КОММУНИКАЦИЙ, КС-3 "ГАГАРАЦКАЯ" КЦ-1
B9: (наименование работ и затрат, наименование объекта)
A11: Основание: | C11: 4377.3.Р.03.ВПК.3-3.000.АС.ВР, ВЕД.№504; ИНВ.685045
E13: Сметная стоимость | L13: 7009,307 | M13: тыс.руб.
E14: Средства на оплату труда | L14: 733,093 | M14: тыс.руб.
E15: Строительный обьем | L15: 377 | M15: М
E16: Цена единицы | L16: 18592,33 | M16: РУБ.
A18: Составлена В ЦЕНАХ НА 01.01.2009г. | M18: РУБ.
A19: N п/п | B19: Шифр и номер позиции норматива | C19: Наименование работ и затрат | D19: Количество | E19: Стоимость единицы | H19: Общая стоимость | L19: Затраты труда рабочих, чел.-ч, не занятых обслуж. машин
E20: Всего | F20: экспл. машин | G20: материалов | H20: Всего | I20: оплаты труда | J20: экспл. машин | K20: материалов
D21: Единица измерения | E21: оплаты труда | F21: в т.ч. оплаты труда | G21: возвр. мате-риалов | J21: в т.ч. оплаты труда | K21: возвр. мате-риалов | L21: обслуживающие маш.
L22: на един. | M22: всего
A23: 1 | B23: 2 | C23: 3 | D23: 4 | E23: 5 | F23: 6 | G23: 7 | H23: 8 | I23: 9 | J23: 10 | K23: 11 | L23: 12 | M23: 13
A25: Раздел 1.СВАЙНОЕ ОСНОВАНИЕ
C26: БУРООПУСКНОЙ СПОСОБ ПОГРУЖЕНИЯ СВАЙ С ОТКРЫТЫМ НИЖНИМ КОНЦОМ
A27: 1 | B27: Е501-54-2 05-01-054- 02 ГЭСН Кн.1 ТЧ-1 п.1.40 Кзтр=0,8, Кэм=0,9 | C27: Бурение скважин диаметром 350 мм вращательным способом в грунтах и породах группы 2 с продувкой сжатым воздухом | D27: 76.8 | E27: 612.74 | F27: 445.96 | G27: 43.69 | H27: 47059 | I27: 9453 | J27: 34250 | K27: 3356 | L27: 0.62 | M27: 47
D28: м | E28: 123.09 | F28: 118.61 | J28: 9109 | L28: 0.59 | M28: 45
C29: НР от ОЗП+ЗПМ (Н10) - 121,26% (=150х0,8084) | E29: 293.08 | H29: 22508
C30: СП от ОЗП+ЗПМ (Н30) - 68,8% (=80х0,86) | E30: 166.29 | H30: 12771
C31: Сметная стоимость | H31: 82338
A32: 2 | B32: С119-9031-4 5 109-9031-0 0045 | C32: Долото трехшарошечное III 393,7 С-ЦВ | D32: 0.250675 | E32: 192799.35 | F32: -- | G32: 192799.35 | H32: 48330 | I32: -- | J32: -- | K32: 48330 | L32: -- | M32: --
D33: шт. | E33: -- | F33: -- | J33: -- | L33: -- | M33: --
A34: 3 | B34: С119-9030-5 109-9030-0 0005 | C34: Долото лопастное | D34: 0.459571 | E34: 61051.8 | F34: -- | G34: 61051.8 | H34: 28058 | I34: -- | J34: -- | K34: 28058 | L34: -- | M34: --
D35: шт. | E35: -- | F35: -- | J35: -- | L35: -- | M35: --
A36: 4 | B36: С113-9212-1 0 103-9212-0 0010 | C36: Трубы бурильные | D36: 0.02089 | E36: 92200.6 | F36: -- | G36: 92200.6 | H36: 1926 | I36: -- | J36: -- | K36: 1926 | L36: -- | M36: --
D37: т | E37: -- | F37: -- | J37: -- | L37: -- | M37: --
A38: 5 | B38: Е501-54-5 05-01-054- 05 ГЭСН Кн.1 ТЧ-1 п.1.40 Кзтр=0,8, Кэм=0,9 | C38: Бурение скважин диаметром 350 мм вращательным способом в грунтах и породах группы 5 с продувкой сжатым воздухом | D38: 563.2 | E38: 2287.23 | F38: 1709.61 | G38: 43.7 | H38: 1288167 | I38: 300703 | J38: 962855 | K38: 24609 | L38: 2.67 | M38: 1505
D39: м | E39: 533.92 | F39: 441.05 | J39: 248402 | L39: 2.1 | M39: 1181
C40: НР от ОЗП+ЗПМ (Н10) - 121,26% (=150х0,8084) | E40: 1182.25 | H40: 665845
C41: СП от ОЗП+ЗПМ (Н30) - 68,8% (=80х0,86) | E41: 670.78 | H41: 377784
C42: Сметная стоимость | H42: 2331796
A43: 6 | B43: С119-9031-4 5 109-9031-0 0045 | C43: Долото трехшарошечное III 393,7 С-ЦВ | D43: 10.723328 | E43: 192799.35 | F43: -- | G43: 192799.35 | H43: 2067451 | I43: -- | J43: -- | K43: 2067451 | L43: -- | M43: --
D44: шт. | E44: -- | F44: -- | J44: -- | L44: -- | M44: --
A45: 7 | B45: С113-9212-1 0 103-9212-0 0010 | C45: Трубы бурильные | D45: 0.367657 | E45: 92200.6 | F45: -- | G45: 92200.6 | H45: 33898 | I45: -- | J45: -- | K45: 33898 | L45: -- | M45: --
D46: т | E46: -- | F46: -- | J46: -- | L46: -- | M46: --
A47: 8 | B47: Е501-55-2 05-01-055- 02 ГЭСН Кн.1 ТЧ-1 п.1.40 Кзтр=0,8, Кэм=0,9 | C47: Бурение скважин диаметром 450 мм вращательным способом в грунтах и породах группы 2 с продувкой сжатым воздухом | D47: 1.2 | E47: 757.33 | F47: 551.27 | G47: 44.61 | H47: 909 | I47: 194 | J47: 662 | K47: 53 | L47: 0.81 | M47: 1
D48: м | E48: 161.45 | F48: 145.48 | J48: 175 | L48: 0.71 | M48: 1
C49: НР от ОЗП+ЗПМ (Н10) - 121,26% (=150х0,8084) | E49: 372.18 | H49: 447
C50: СП от ОЗП+ЗПМ (Н30) - 68,8% (=80х0,86) | E50: 211.17 | H50: 253
C51: Сметная стоимость | H51: 1609
A52: 9 | B52: С119-9031-1 3 109-9031-0 0013 | C52: Долото трехшарошечное III 490,0 С-ЦВ-Д63 | D52: 0.004752 | E52: 353028.11 | F52: -- | G52: 353028.11 | H52: 1678 | I52: -- | J52: -- | K52: 1678 | L52: -- | M52: --
D53: шт. | E53: -- | F53: -- | J53: -- | L53: -- | M53: --
A54: 10 | B54: С119-9030-5 109-9030-0 0005 | C54: Долото лопастное | D54: 0.008712 | E54: 61051.8 | F54: -- | G54: 61051.8 | H54: 532 | I54: -- | J54: -- | K54: 532 | L54: -- | M54: --
D55: шт. | E55: -- | F55: -- | J55: -- | L55: -- | M55: --
A56: 11 | B56: С113-9212-1 0 103-9212-0 0010 | C56: Трубы бурильные | D56: 0.000396 | E56: 92200.6 | F56: -- | G56: 92200.6 | H56: 37 | I56: -- | J56: -- | K56: 37 | L56: -- | M56: --
D57: т | E57: -- | F57: -- | J57: -- | L57: -- | M57: --
A58: 12 | B58: Е501-55-5 05-01-055- 05 ГЭСН Кн.1 ТЧ-1 п.1.40 Кзтр=0,8, Кэм=0,9 | C58: Бурение скважин диаметром 450 мм вращательным способом в грунтах и породах группы 5 с продувкой сжатым воздухом | D58: 8.8 | E58: 2944.43 | F58: 2206.05 | G58: 44.6 | H58: 25911 | I58: 6105 | J58: 19413 | K58: 393 | L58: 3.47 | M58: 31
D59: м | E59: 693.78 | F59: 567.73 | J59: 4996 | L59: 2.69 | M59: 24
C60: НР от ОЗП+ЗПМ (Н10) - 121,26% (=150х0,8084) | E60: 1529.7 | H60: 13461
C61: СП от ОЗП+ЗПМ (Н30) - 68,8% (=80х0,86) | E61: 867.92 | H61: 7638
C62: Сметная стоимость | H62: 47010
A63: 13 | B63: С119-9031-1 3 109-9031-0 0013 | C63: Долото трехшарошечное III 490,0 С-ЦВ-Д63 | D63: 0.034848 | E63: 353028.11 | F63: -- | G63: 353028.11 | H63: 12302 | I63: -- | J63: -- | K63: 12302 | L63: -- | M63: --
D64: шт. | E64: -- | F64: -- | J64: -- | L64: -- | M64: --
A65: 14 | B65: С113-9212-1 0 103-9212-0 0010 | C65: Трубы бурильные | D65: 0.002904 | E65: 92200.6 | F65: -- | G65: 92200.6 | H65: 268 | I65: -- | J65: -- | K65: 268 | L65: -- | M65: --
D66: т | E66: -- | F66: -- | J66: -- | L66: -- | M66: --
A67: 15 | B67: Е501-63-1 05-01-063- 01 ГЭСН | C67: Заполнение скважин цементно-песчаным раствором состава 1:5 | D67: 46.68 | E67: 4610.36 | F67: 164.03 | G67: 4133.51 | H67: 215211 | I67: 14602 | J67: 7657 | K67: 192952 | L67: 2 | M67: 93
D68: 1 м3 | E68: 312.82 | F68: 96.21 | J68: 4491 | L68: 0.55 | M68: 26
C69: НР от ОЗП+ЗПМ (Н10) - 121,26% (=150х0,8084) | E69: 495.99 | H69: 23153
C70: СП от ОЗП+ЗПМ (Н30) - 68,8% (=80х0,86) | E70: 281.41 | H70: 13136
C71: Сметная стоимость | H71: 251500
A72: 16 | B72: Е501-11-3 05-01-011- 03 ГЭСН | C72: Погружение дизель-молотом копровой установки на базе трактора стальных свай массой 1 м до 50 кг, длиной свыше 8 м в грунты группы 1 | D72: 21.43 | E72: 5188.43 | F72: 3108.54 | G72: 160.9 | H72: 111188 | I72: 41124 | J72: 66616 | K72: 3448 | L72: 10.81 | M72: 232
D73: т | E73: 1918.99 | F73: 766.52 | J73: 16427 | L73: 3.14 | M73: 67
C74: НР от ОЗП+ЗПМ (Н10) - 121,26% (=150х0,8084) | E74: 3256.45 | H74: 69786
C75: СП от ОЗП+ЗПМ (Н30) - 68,8% (=80х0,86) | E75: 1847.63 | H75: 39595
C76: Сметная стоимость | H76: 220569
A77: 17 | B77: Е102-61-1 01-02-061- 01 ГЭСН | C77: Заполнение пазух скважин сухим песком средней крупности | D77: 0.064 | E77: 10905.86 | F77: -- | G77: -- | H77: 698 | I77: 698 | J77: -- | K77: -- | L77: 88.5 | M77: 6
D78: 100м3 | E78: 10905.86 | F78: -- | J78: -- | L78: -- | M78: --
C79: НР от ОЗП+ЗПМ (Н10) - 71,1392% (=88х0,8084) | E79: 7758.34 | H79: 497
C80: СП от ОЗП+ЗПМ (Н30) - 38,7% (=45х0,86) | E80: 4220.57 | H80: 270
C81: Сметная стоимость | H81: 1465
A82: 18 | B82: С148-0122-0 2 408-0122-0 0002 | C82: Песок природный средний для строительных работ | D82: 6.4 | E82: 815.97 | F82: -- | G82: 815.97 | H82: 5222 | I82: -- | J82: -- | K82: 5222 | L82: -- | M82: --
D83: м3 | E83: -- | F83: -- | J83: -- | L83: -- | M83: --
A84: 19 | B84: С113-0459-С 1 103-0459-0 0963 | C84: Трубы для свай ГОСТ 8732-78 из стали 09Г2С 159Х8 мм | D84: 21.18 | E84: 34578.76 | F84: -- | G84: 34578.76 | H84: 732378 | I84: -- | J84: -- | K84: 732378 | L84: -- | M84: --
D85: т | E85: -- | F85: -- | J85: -- | L85: -- | M85: --
A86: 20 | B86: С113-0471-С 1 103-0471-0 1179 | C86: Трубы для свай ГОСТ 8732-78 из стали 09Г2С 219Х8 мм | D86: 0.463 | E86: 33623.37 | F86: -- | G86: 33623.37 | H86: 15568 | I86: -- | J86: -- | K86: 15568 | L86: -- | M86: --
D87: т | E87: -- | F87: -- | J87: -- | L87: -- | M87: --
A88: 21 | B88: Е501-9-1 05-01-009- 01 ГЭСН | C88: Заполнение внутренних полостей свай цементно-песчаным раствором состава 1:5 | D88: 11.6 | E88: 7330.62 | F88: 1532.76 | G88: 4872.63 | H88: 85035 | I88: 10733 | J88: 17780 | K88: 56522 | L88: 5.57 | M88: 65
D89: 1 м3 | E89: 925.23 | F89: 477.96 | J89: 5544 | L89: 2.11 | M89: 24
C90: НР от ОЗП+ЗПМ (Н10) - 121,26% (=150х0,8084) | E90: 1701.51 | H90: 19737
C91: СП от ОЗП+ЗПМ (Н30) - 68,8% (=80х0,86) | E91: 965.39 | H91: 11199
C92: Сметная стоимость | H92: 115971
A93: 22 | B93: Е1303-1-1 13-03-001- 01 ГЭСН | C93: Огрунтовка (окраска) металлоконструкций эмалью СБЭ-111 Унипол марки Б ТУ 2312-001-59846005-2003 [первый слой, толщиной 75 мкм] | D93: 0.98 | E93: 2112.27 | F93: 37.26 | G93: 623.26 | H93: 2070 | I93: 1423 | J93: 37 | K93: 610 | L93: 7.43 | M93: 7
D94: 100м2 | E94: 1451.75 | F94: 3.39 | J94: 3 | L94: 0.02 | M94: --
C95: НР от ОЗП+ЗПМ (Н10) - 80,0316% (=99х0,8084) | E95: 1164.57 | H95: 1141
C96: СП от ОЗП+ЗПМ (Н30) - 60,2% (=70х0,86) | E96: 875.99 | H96: 858
C97: Сметная стоимость | H97: 4070
A98: 23 | B98: Е1303-1-2 13-03-001- 02 ГЭСН | C98: Огрунтовка (окраска) металлоконструкций эмалью СБЭ-111 Унипол марки Б ТУ 2312-001-59846005-2003 [последующий слой, толщиной 75 мкм] | D98: 0.98 | E98: 1815.75 | F98: 37.26 | G98: 326.74 | H98: 1779 | I98: 1423 | J98: 37 | K98: 319 | L98: 7.43 | M98: 7
D99: 100м2 | E99: 1451.75 | F99: 3.39 | J99: 3 | L99: 0.02 | M99: --
C100: НР от ОЗП+ЗПМ (Н10) - 80,0316% (=99х0,8084) | E100: 1164.57 | H100: 1141
C101: СП от ОЗП+ЗПМ (Н30) - 60,2% (=70х0,86) | E101: 875.99 | H101: 858
C102: Сметная стоимость | H102: 3779
A103: 24 | B103: С1113-0283- 2 113-0283-0 0002 | C103: Грунт-эмаль "СБЭ-111 "Унипол" марки "Б", ТУ 2312-001-59846005-2003 | D103: 45.08 | E103: 53.58 | F103: -- | G103: 53.58 | H103: 2415 | I103: -- | J103: -- | K103: 2415 | L103: -- | M103: --
D104: кг | E104: -- | F104: -- | J104: -- | L104: -- | M104: --
A105: 25 | B105: Е101-31-2 01-01-031- 02 ГЭСН | C105: Разравнивание грунта 2 группы после бурения бульдозером мощностью 130 л.с. с перемещением до 10м | D105: 0.066 | E105: 7962.35 | F105: 7962.35 | G105: -- | H105: 526 | I105: -- | J105: 526 | K105: -- | L105: -- | M105: --
D106: 1000м3 | E106: -- | F106: 2491.72 | J106: 164 | L106: 11 | M106: 1
C107: НР от ОЗП+ЗПМ (Н10) - 84,882% (=105х0,8084) | E107: 2115.02 | H107: 140
C108: СП от ОЗП+ЗПМ (Н30) - 43% (=50х0,86) | E108: 1071.44 | H108: 71
C109: Сметная стоимость | H109: 736
A110: 26 | B110: Е101-31-10 01-01-031- 10 ГЭСН к-4 | C110: При перемещении грунта на каждые последующие 10 м добавлять к норме 01-01-031-2 | D110: 0.066 | E110: 26753.5 | F110: 26753.5 | G110: -- | H110: 1766 | I110: -- | J110: 1766 | K110: -- | L110: -- | M110: --
D111: 1000м3 | E111: -- | F111: 8372.18 | J111: 553 | L111: 36.96 | M111: 2
C112: НР от ОЗП+ЗПМ (Н10) - 84,882% (=105х0,8084) | E112: 7106.47 | H112: 469
C113: СП от ОЗП+ЗПМ (Н30) - 43% (=50х0,86) | E113: 3600.04 | H113: 238
C114: Сметная стоимость | H114: 2473
C115: Итого прямые затраты по разделу 1 | D115: РУБ. | H115: 4730381 | I115: 386458 | J115: 1111597 | K115: 3232326 | M115: 1994
D116: РУБ. | J116: 289867 | M116: 1371
B118: Стоимость общестроительных работ - | D118: РУБ. | H118: 4730381
B119: Материалы - | D119: РУБ. | H119: 282173
B120: Всего оплата труда - | D120: РУБ. | I120: 676325
B121: Стоимость материалов и конструкций - | D121: РУБ. | H121: 2950062
B122: Местные и неучтенные материалы | D122: РУБ. | H122: 91
C123: Накладные расходы - | D123: РУБ. | H123: 818325
C124: Сметная прибыль - | D124: РУБ. | H124: 464671
B125: Всего, стоимость общестроительных работ - | D125: РУБ. | H125: 6013377
C126: Нормативная трудоемкость - | D126: ЧЕЛ.-Ч | M126: 3365
C127: Сметная заработная плата - | D127: РУБ. | I127: 676325
C128: Итого по разделу 1 | D128: РУБ. | H128: 6013377
C129: Нормативная трудоемкость - | D129: ЧЕЛ.-Ч | M129: 3365
C130: Сметная заработная плата - | D130: РУБ. | I130: 676325
A132: Раздел 2.МЕТАЛЛОКОНСТРУКЦИИ
A133: 27 | B133: Е906-24-5 09-06-024- 05 ГЭСН ТЧ прил.1 п.2 Кзтр=1,10, Кэм=1,10, Кмр=1,10 | C133: Монтаж оголовков свай из т/л стали массой до 0,05т С345-3 | D133: 0.17 | E133: 15409.35 | F133: 3127.36 | G133: 1388.33 | H133: 2620 | I133: 1852 | J133: 532 | K133: 236 | L133: 59.83 | M133: 10
D134: т | E134: 10893.66 | F134: 539.62 | J134: 92 | L134: 2.85 | M134: --
C135: НР от ОЗП+ЗПМ (Н11) - 80,0316% (=99х0,8084) | E135: 9150.24 | H135: 1556
C136: СП от ОЗП+ЗПМ (Н30) - 73,1% (=85х0,86) | E136: 8357.73 | H136: 1421
C137: Сметная стоимость | H137: 5596
A138: 28 | B138: С121-768-11 201-0768-0 0011 | C138: М/конструкции оголовков свай из т/л стали массой до 0,05т С345-3 | D138: 0.173 | E138: 47847.48 | F138: -- | G138: 47847.48 | H138: 8278 | I138: -- | J138: -- | K138: 8278 | L138: -- | M138: --
D139: т | E139: -- | F139: -- | J139: -- | L139: -- | M139: --
A140: 29 | B140: С121-80999- 5 201-80999- 5 | C140: Доплата за марку стали 09Г2С, 09Г2 [класс стали-С295, С345] ГОСТ 27772-88, ГОСТ 19281-89, ГОСТ 19282-88 | D140: 0.173 | E140: 4916.9 | F140: -- | G140: 4916.9 | H140: 851 | I140: -- | J140: -- | K140: 851 | L140: -- | M140: --
D141: т | E141: -- | F141: -- | J141: -- | L141: -- | M141: --
A142: 30 | B142: Е903-2-4 09-03-002- 04 ГЭСН ТЧ прил.1 п.2 Кзтр=1,08, Кэм=1,08, Кмр=1,08 | C142: Монтаж колонн эстакад Н до 25м составного сечения с преобладанием г/к профилей С345-3 3,29+0,107 - гр.4 | D142: 3.397 | E142: 6319.98 | F142: 3120.21 | G142: 584.61 | H142: 21469 | I142: 8884 | J142: 10599 | K142: 1986 | L142: 15.12 | M142: 51
D143: т | E143: 2615.16 | F143: 756.38 | J143: 2569 | L143: 3.46 | M143: 12
C144: НР от ОЗП+ЗПМ (Н11) - 80,0316% (=99х0,8084) | E144: 2698.29 | H144: 9166
C145: СП от ОЗП+ЗПМ (Н30) - 73,1% (=85х0,86) | E145: 2464.59 | H145: 8372
C146: Сметная стоимость | H146: 39007
A147: 31 | B147: С121-605-2 201-0605-0 0002 | C147: М/конструкции колонн эстакад Н до 25м составного сечения с преобладанием г/к профилей С345-3 3,42+0,111 - гр.4 | D147: 3.531 | E147: 54623.95 | F147: -- | G147: 54623.95 | H147: 192877 | I147: -- | J147: -- | K147: 192877 | L147: -- | M147: --
D148: т | E148: -- | F148: -- | J148: -- | L148: -- | M148: --
A149: 32 | B149: С121-80999- 5 201-80999- 5 | C149: Доплата за марку стали 09Г2С, 09Г2 [класс стали-С295, С345] ГОСТ 27772-88, ГОСТ 19281-89, ГОСТ 19282-88 | D149: 3.531 | E149: 4916.9 | F149: -- | G149: 4916.9 | H149: 17362 | I149: -- | J149: -- | K149: 17362 | L149: -- | M149: --
D150: т | E150: -- | F150: -- | J150: -- | L150: -- | M150: --
A151: 33 | B151: Е903-15-1 09-03-015- 01 ГЭСН ТЧ прил.1 п.2 Кзтр=1,13, Кэм=1,13, Кмр=1,13 | C151: Монтаж балок из г/к сортового проката С345-3 0,6+8,68 - гр.4 | D151: 9.28 | E151: 6039.97 | F151: 2464.75 | G151: 652.05 | H151: 56051 | I151: 27127 | J151: 22873 | K151: 6051 | L151: 17.84 | M151: 166
D152: т | E152: 2923.17 | F152: 450.92 | J152: 4185 | L152: 1.98 | M152: 18
C153: НР от ОЗП+ЗПМ (Н11) - 80,0316% (=99х0,8084) | E153: 2700.34 | H153: 25059
C154: СП от ОЗП+ЗПМ (Н30) - 73,1% (=85х0,86) | E154: 2466.46 | H154: 22889
C155: Сметная стоимость | H155: 103999
A156: 34 | B156: С121-951-24 201-0951-0 0024 | C156: М/конструкции балок из г/к сортового проката С345-3 0,62+9,03 - гр.4 | D156: 9.65 | E156: 54606.58 | F156: -- | G156: 54606.58 | H156: 526953 | I156: -- | J156: -- | K156: 526953 | L156: -- | M156: --
D157: т | E157: -- | F157: -- | J157: -- | L157: -- | M157: --
A158: 35 | B158: С121-80999- 5 201-80999- 5 | C158: Доплата за марку стали 09Г2С, 09Г2 [класс стали-С295, С345] ГОСТ 27772-88, ГОСТ 19281-89, ГОСТ 19282-88 | D158: 9.65 | E158: 4916.9 | F158: -- | G158: 4916.9 | H158: 47448 | I158: -- | J158: -- | K158: 47448 | L158: -- | M158: --
D159: т | E159: -- | F159: -- | J159: -- | L159: -- | M159: --
A160: 36 | B160: Е906-24-12 09-06-024- 12 ГЭСН ТЧ прил.1 п.2 Кзтр=1,10, Кэм=1,10, Кмр=1,10 | C160: Монтаж фундаментов из г/к сортового проката, т/л стали С345-3 | D160: 0.09 | E160: 18652.04 | F160: 2471.72 | G160: 1945.85 | H160: 1679 | I160: 1281 | J160: 222 | K160: 176 | L160: 78.18 | M160: 7
D161: т | E161: 14234.47 | F161: 103.35 | J161: 9 | L161: 0.52 | M161: --
C162: НР от ОЗП+ЗПМ (Н11) - 80,0316% (=99х0,8084) | E162: 11474.79 | H162: 1033
C163: СП от ОЗП+ЗПМ (Н30) - 73,1% (=85х0,86) | E163: 10480.95 | H163: 943
C164: Сметная стоимость | H164: 3655
A165: 37 | B165: С121-755-4 201-0755-0 0004 | C165: М/конструкции фундаментов из г/к сортового проката, т/л стали С345-3 | D165: 0.094 | E165: 54623.95 | F165: -- | G165: 54623.95 | H165: 5135 | I165: -- | J165: -- | K165: 5135 | L165: -- | M165: --
D166: т | E166: -- | F166: -- | J166: -- | L166: -- | M166: --
A167: 38 | B167: С121-80999- 5 201-80999- 5 | C167: Доплата за марку стали 09Г2С, 09Г2 [класс стали-С295, С345] ГОСТ 27772-88, ГОСТ 19281-89, ГОСТ 19282-88 | D167: 0.094 | E167: 4916.9 | F167: -- | G167: 4916.9 | H167: 462 | I167: -- | J167: -- | K167: 462 | L167: -- | M167: --
D168: т | E168: -- | F168: -- | J168: -- | L168: -- | M168: --
C169: Итого прямые затраты по разделу 2 | D169: РУБ. | H169: 881184 | I169: 39144 | J169: 34226 | K169: 807814 | M169: 234
D170: РУБ. | J170: 6855 | M170: 31
B172: Стоимость металломонтажных работ - | D172: РУБ. | H172: 881184
B173: Материалы - | D173: РУБ. | H173: 8448
B174: Всего оплата труда - | D174: РУБ. | I174: 45999
B175: Стоимость материалов и конструкций - | D175: РУБ. | H175: 799365
C176: Накладные расходы - | D176: РУБ. | H176: 36814
C177: Сметная прибыль - | D177: РУБ. | H177: 33625
B178: Всего, стоимость металломонтажных работ - | D178: РУБ. | H178: 951622
C179: Нормативная трудоемкость - | D179: ЧЕЛ.-Ч | M179: 265
C180: Сметная заработная плата - | D180: РУБ. | I180: 45999
C181: Итого по разделу 2 | D181: РУБ. | H181: 951622
C182: Нормативная трудоемкость - | D182: ЧЕЛ.-Ч | M182: 265
C183: Сметная заработная плата - | D183: РУБ. | I183: 45999
A185: Раздел 3.ПРОЧИЕ РАБОТЫ
A186: 39 | B186: Е1303-2-5 13-03-002- 05 ГЭСН К-2 | C186: Огрунтовка металлических поверхностей грунтовкой ГФ-0119 за 2 раза | D186: 2.85 | E186: 3563.53 | F186: 74.52 | G186: 1390.39 | H186: 10156 | I186: 5981 | J186: 212 | K186: 3963 | L186: 10.62 | M186: 30
D187: 100м2 | E187: 2098.62 | F187: 6.78 | J187: 19 | L187: 0.04 | M187: --
C188: НР от ОЗП+ЗПМ (Н10) - 80,0316% (=99х0,8084) | E188: 1684.98 | H188: 4802
C189: СП от ОЗП+ЗПМ (Н30) - 60,2% (=70х0,86) | E189: 1267.45 | H189: 3612
C190: Сметная стоимость | H190: 18570
A191: 40 | B191: Е1303-4-26 13-03-004- 26 ГЭСН К-2 | C191: Окраска металлических огрунтованных поверхностей эмалью ПФ-115 за 2 раза | D191: 2.85 | E191: 6017.55 | F191: 53.5 | G191: 4656.64 | H191: 17150 | I191: 3726 | J191: 152 | K191: 13272 | L191: 7.66 | M191: 22
D192: 100м2 | E192: 1307.41 | F192: 6.78 | J192: 19 | L192: 0.04 | M192: --
C193: НР от ОЗП+ЗПМ (Н10) - 80,0316% (=99х0,8084) | E193: 1051.77 | H193: 2998
C194: СП от ОЗП+ЗПМ (Н30) - 60,2% (=70х0,86) | E194: 791.14 | H194: 2255
C195: Сметная стоимость | H195: 22402
A196: 41 | B196: Е807-2-1 08-07-002- 01 ГЭСН | C196: Установка и разборка внутренних трубчатых инвентарных лесов при высоте помещений до 6 м | D196: 0.09 | E196: 16913.08 | F196: 84.35 | G196: 5487.92 | H196: 1522 | I196: 1021 | J196: 8 | K196: 493 | L196: 70.2 | M196: 6
D197: 100м2 | E197: 11340.81 | F197: 28.92 | J197: 3 | L197: 0.18 | M197: --
C198: НР от ОЗП+ЗПМ (Н10) -108,3256% (=134х0,8084) | E198: 12316.33 | H198: 1108
C199: СП от ОЗП+ЗПМ (Н30) - 68,8% (=80х0,86) | E199: 7822.38 | H199: 704
C200: Сметная стоимость | H200: 3334
C201: Итого прямые затраты по разделу 3 | D201: РУБ. | H201: 28828 | I201: 10728 | J201: 372 | K201: 17728 | M201: 58
D202: РУБ. | J202: 41 | M202: --
B204: Стоимость общестроительных работ - | D204: РУБ. | H204: 28828
B205: Материалы - | D205: РУБ. | H205: 17728
B206: Всего оплата труда - | D206: РУБ. | I206: 10769
C207: Накладные расходы - | D207: РУБ. | H207: 8908
C208: Сметная прибыль - | D208: РУБ. | H208: 6571
B209: Всего, стоимость общестроительных работ - | D209: РУБ. | H209: 44307
C210: Нормативная трудоемкость - | D210: ЧЕЛ.-Ч | M210: 59
C211: Сметная заработная плата - | D211: РУБ. | I211: 10769
... 29 more rows
